Cogmind - Beta 17 @@@ ROGUE MODE // 2026.07.25 @ 19:49:34 Player: Afro Result: Destroyed by X-62 Marksman with Pulse Rifle Performance ------------- Evolutions (2) 1000 Regions Visited (4) 800 Robots Destroyed (33) 165 Value Destroyed (466) 466 Prototype IDs (0) 0 Alien Tech Used (0) 0 Bonus (91) 91 TOTAL SCORE: 2522 Bonus ------- Follower Combat Kills 91 Cogmind --------- Core Integrity 0/550 Matter 280/300 Energy 80/100 System Corruption 4% Temperature Cool (9) Movement Walking (120) Location -8/Materials Parts ------- > --- POWER (1) -------- (None) > --- PROPULSION (2) --- Carbon-fiber Leg > --- UTILITY (6) ------ Small Storage Unit Visual Processing Unit Signal Interpreter Terrain Scan Processor Targeting Computer > --- WEAPON (2) ------- (None) > --- INVENTORY (8) ---- Improved Ion Engine Flight Unit Peak State ------------ > --- POWER ------------ Light Nuclear Core > --- PROPULSION ------- Flight Unit Flight Unit > --- UTILITY ---------- Visual Processing Unit Sensor Array Signal Interpreter Improved Terrain Scanner Terrain Scan Processor Seismic Detector > --- WEAPON ----------- Shock Rifle > --- INVENTORY -------- Light Nuclear Core Small Storage Unit [Rating: 18] Favorites ----------- Power Light Ion Engine Engine Light Ion Engine Power Core Light Nuclear Core Propulsion Light Treads Treads Light Treads Leg Carbon-fiber Leg Hover Unit Hover Unit Flight Unit Flight Unit Utility Seismic Detector Device Seismic Detector Storage Large Storage Unit Processor Signal Interpreter Weapon Small Laser Energy Gun Small Laser Ballistic Gun Light Assault Rifle Special Weapon Mining Laser Build | -11 -10 -10 -9 -8 ------- Run | Yrd Mat Min Mat Mat Slots Evolved 4 | . . . 2 2 Power . | . . . . . Propulsion . | . . . . . Utility 4 | . . . 2 2 Weapon . | . . . . . Parts Attached 37 | 7 16 . 1 13 Power 6 | 1 4 . . 1 Engine 4 | 1 3 . . . Core 2 | . 1 . . 1 Reactor . | . . . . . Propulsion 11 | 2 5 . . 4 Treads 4 | 2 . . . 2 Leg 1 | . . . . 1 Wheel . | . . . . . Hover 2 | . 2 . . . Flight 4 | . 3 . . 1 Utility 13 | 2 5 . 1 5 Device 6 | 1 3 . . 2 Storage 3 | 1 1 . . 1 Processor 4 | . 1 . 1 2 Hackware . | . . . . . Protection . | . . . . . Artifact . | . . . . . Weapon 7 | 2 2 . . 3 Energy Gun 4 | 1 2 . . 1 Energy Cannon . | . . . . . Ballistic Gun 2 | . . . . 2 Ballistic Cannon . | . . . . . Launcher . | . . . . . Special Weapon 1 | 1 . . . . Impact Weapon . | . . . . . Slashing Weapon . | . . . . . Piercing Weapon . | . . . . . Special Melee Weapon . | . . . . . Unidentified Prototypes . | . . . . . Parts Lost 15 | . 2 . 1 12 Power 3 | . . . . 3 Propulsion 3 | . . . . 3 Utility 4 | . . . . 4 Weapon 5 | . 2 . 1 2 Highest Loss Streak 7 | . 1 . 1 7 To Critical Strikes . | . . . . . Average Backups 4 | 2 6 5 4 2 Power 1 | 1 1 1 1 . Propulsion . | . . . . . Utility 2 | . 5 4 3 1 Weapon . | . . . . . Tool/Special . | . . . . . Unused Backups 6 | 1 3 . . 2 Power 2 | 1 . . . 1 Propulsion . | . . . . . Utility 4 | . 3 . . 1 Weapon . | . . . . . Tool/Special . | . . . . . Average Slot Usage (%) 81 | . 88 85 86 57 Engine 10 | . 13 14 11 2 Treads 11 | . 21 . . 1 Flight 9 | . 3 28 22 5 Device 14 | . 13 14 22 10 Storage 6 | . 12 . . 1 Processor 11 | . 1 14 21 26 Energy Gun 10 | . 14 14 10 . Special Weapon 2 | . 5 . . . Peak Build Rating 18 | 7 9 7 10 18 Average Rating 7 | 6 6 7 9 10 On Entrance 6 | . 7 7 7 9 Avg Prop Armor Cover (%) 8 | . 7 . . 9 Naked Turns . | . . . . . Heaviest Build 26 | 11 26 6 7 10 Greatest Support 40 | 40 40 8 8 40 Greatest Overweight (x) 8 | . 8 . . 3 Average Overweight (x) . | . . . . . Largest Inventory Capacity 15 | 8 15 5 5 8 Average Capacity 9 | 7 13 5 5 5 Most Carried 10 | 5 10 5 5 4 Average Carried 4 | 2 6 5 4 2 Final Capacity 8 | 8 5 5 5 8 Final Carried 5 | 4 5 5 5 2 Class Distribution -------------------- 82% | Mutant 14% | Scout Dominant Class ---------------- Mutant | -10/Materials Mutant | -10/Mines Scout | -9/Materials Mutant | -8/Materials Resources | -11 -10 -10 -9 -8 ----------- Run | Yrd Mat Min Mat Mat Matter Collected 641 | 270 92 . 151 128 Remotely . | . . . . . Salvage Created 755 | 266 370 . . 119 Parts 72 | 31 28 . . 13 Haulers Intercepted . | . . . . . Recyclers Shooed 5 | 1 4 . . . Parts Field Recycled . | . . . . . Retrieved Matter . | . . . . . Parts Self-Destructed . | . . . . . Prevented . | . . . . . Parts Restored . | . . . . . Kills | -11 -10 -10 -9 -8 ------- Run | Yrd Mat Min Mat Mat Combat Hostiles Destroyed 13 | . 8 . . 5 Guns 8 | . 5 . . 3 AOE 5 | . 3 . . 2 Classes Destroyed 8 | 3 4 . . 1 Worker 7 | 4 3 . . . Builder 1 | . 1 . . . Tunneler 9 | 9 . . . . Recycler 1 | 1 . . . . Watcher 2 | . 2 . . . Swarmer 6 | . 3 . . 3 Grunt 5 | . 5 . . . Sentry 2 | . . . . 2 Best Kill Streak 6 | 4 6 . . 3 Combat Bots Only 3 | . 3 . . 3 Max Kills in Single Turn 4 | 1 4 . . 2 Gunslinging . | . . . . . Exploded 2 | . 2 . . 2 Melee . | . . . . . Uniques/NPCs Destroyed . | . . . . . Combat | -11 -10 -10 -9 -8 -------- Run | Yrd Mat Min Mat Mat Hostile Shots Fired 188 | . 45 . 14 129 Missed 66 | . 8 . 5 53 Hits 122 | . 37 . 9 76 Projectile 122 | . 37 . 9 76 Critical Strikes 1 | . . . 1 . Damage Taken 1719 | . 449 . 80 1190 Core 656 | . 70 . 30 556 Absorbed by Shields . | . . . . . Core Remaining (%) 88 | 100 . 72 92 . Volleys Fired 115 | 57 51 . . 7 Largest 2 | 2 2 . . 2 Hottest 140 | 140 140 . . 50 Shots Fired 137 | 62 62 . . 13 Gun 129 | 57 59 . . 13 Cannon . | . . . . . Launcher . | . . . . . Special 8 | 5 3 . . . Kinetic 12 | . . . . 12 Thermal 112 | 62 50 . . . Explosive . | . . . . . Electromagnetic 13 | . 12 . . 1 Robot Hit Streak 17 | 5 17 . . 4 Robot Miss Streak 3 | 2 3 . . 2 Penetration Max . | . . . . . Secondary Targets 1 | . 1 . . . Max Gunslinging Chain 1 | . 1 . . . Shots Hit Robots 89 | 37 44 . . 8 Core Hits 50 | 15 23 . . 12 Critical Kills . | . . . . . Critical Parts Destroyed . | . . . . . Critical Strikes . | . . . . . Melee Attacks . | . . . . . Impact . | . . . . . Slashing . | . . . . . Piercing . | . . . . . Sneak Attacks . | . . . . . Combat Hostiles . | . . . . . Follow-up Attacks . | . . . . . Damage Inflicted 1392 | 425 751 . . 216 Guns 1019 | 377 526 . . 116 Cannons . | . . . . . Explosions 294 | . 225 . . 69 Melee . | . . . . . Ramming 31 | . . . . 31 Kinetic 102 | . . . . 102 Thermal 1161 | 425 682 . . 54 Explosive 15 | . . . . 15 Electromagnetic 83 | . 69 . . 14 Impact . | . . . . . Slashing . | . . . . . Piercing . | . . . . . Highest Corruption 4 | . . . . 4 Average Corruption 4 | . . . . 4 Corruption Purged . | . . . . . Corruption Blocked . | . . . . . Effects 1 | . . . . 1 Misfires 1 | . . . . 1 Overload Shots . | . . . . . Overflow Damage 106 | 6 . . . 100 Projectiles 6 | 6 . . . . Explosions 100 | . . . . 100 Melee . | . . . . . Knockbacks 1 | . . . . 1 Impact 1 | . . . . 1 Kinetic . | . . . . . Secondary . | . . . . . Self-Inflicted Damage 216 | . 53 . . 163 Shots 4 | . 2 . . 2 Rammed 10 | . 1 . . 9 Targets Rammed 10 | . 1 . . 9 Kicked . | . . . . . Crushed . | . . . . . Highest Temperature 138 | 42 138 . 10 14 Average Temperature 36 | 21 42 . 10 9 Received Heat Transfer 486 | . 183 . 33 270 Siege Activations . | . . . . . Martial Activations . | . . . . . Shielding Activations . | . . . . . Robots Disrupted . | . . . . . Combat Hostiles . | . . . . . Robots Corrupted . | . . . . . Combat Hostiles . | . . . . . Parts Fried . | . . . . . Impact Corruptions . | . . . . . Robots Melted . | . . . . . Combat Hostiles . | . . . . . Parts Melted 4 | 1 3 . . . Heat Transferred 2350 | 975 1325 . . 50 Parts Sabotaged . | . . . . . Parts Stolen . | . . . . . Parts Stripped . | . . . . . Power Chain Reactions 3 | . 2 . . 1 Alert | -11 -10 -10 -9 -8 ------- Run | Yrd Mat Min Mat Mat Maximum Alert Level . | . . . . . Low Security (%) 100 | 100 100 100 100 100 Level 1 . | . . . . . Level 2 . | . . . . . Level 3 . | . . . . . Level 4 . | . . . . . Level 5 . | . . . . . High Security . | . . . . . Max Security . | . . . . . Peak Influence 109 | 10 109 39 95 97 Initial 39 | . . 39 3 16 Average 18 | . 14 25 40 39 Influence Increases 764 | 70 263 . 190 241 Destroy 0b10 Robot/C 320 | . 160 . 60 100 Destroy 0b10 Robot/NC 100 | 70 30 . . . Destroy Leader 84 | . 34 . 20 30 Allied During Kill 5 | . . . 5 . Disable Machine 30 | . 15 . . 15 Destroy Structure 30 | . 9 . . 21 Partial Spotted 75 | . 15 . 45 15 Lose Combat Pursuer 120 | . . . 60 60 Influence Decreases 757 | 70 162 92 159 274 Entered New Map 92 | . . 62 6 24 Time Decay 505 | 70 152 30 123 130 Lost Part 140 | . 10 . 10 120 Lost Ally 20 | . . . 20 . Squads Dispatched 3 | . 1 . . 2 Investigation . | . . . . . Extermination . | . . . . . Reinforcement 3 | . 1 . . 2 Assault . | . . . . . Garrison . | . . . . . Intercept . | . . . . . Searches Triggered . | . . . . . Construction Impeded . | . . . . . Haulers Reinforced . | . . . . . Active Scanning Responses . | . . . . . Cargo Convoy Interrupts . | . . . . . Stealth | -11 -10 -10 -9 -8 --------- Run | Yrd Mat Min Mat Mat Distress Signals 4 | . 1 . 3 . Communications Jammed . | . . . . . Distress Signals . | . . . . . Times Spotted 47 | . 13 . 15 19 Peak Tracking Total 12 | . 6 . 12 5 Tactical Retreats 3 | . . . 2 1 Traps | -11 -10 -10 -9 -8 ------- Run | Yrd Mat Min Mat Mat Traps Triggered 5 | . 5 . . . Indirectly . | . . . . . Trap Hack Attempts . | . . . . . Triggered . | . . . . . Disarmed . | . . . . . Reprogrammed . | . . . . . Reused . | . . . . . Traps Extracted . | . . . . . Installed . | . . . . . Triggered . | . . . . . Machines | -11 -10 -10 -9 -8 ---------- Run | Yrd Mat Min Mat Mat Machines Disabled 2 | . 1 . . 1 Max in Single Turn 1 | . 1 . . 1 Machines Repaired . | . . . . . Machines Dismantled . | . . . . . Machines Sabotaged . | . . . . . Overloaded Fab Kills . | . . . . . Hacking | -11 -10 -10 -9 -8 --------- Run | Yrd Mat Min Mat Mat Machines Accessed 3 | . 1 . 2 . Terminals 1 | . . . 1 . Fabricators . | . . . . . Repair Stations . | . . . . . Recycling Units 1 | . 1 . . . Scanalyzers 1 | . . . 1 . Garrison Access . | . . . . . Total Hacks 8 | . 2 . 6 . Successful 6 | . 2 . 4 . Failed 2 | . . . 2 . Catastrophic . | . . . . . Database Lockouts . | . . . . . Manual . | . . . . . Terminals 3 | . . . 3 . Fabricators . | . . . . . Repair Stations . | . . . . . Recycling Units 2 | . 2 . . . Scanalyzers 3 | . . . 3 . Garrison Access . | . . . . . Terminal Hacks 1 | . . . 1 . Alert Level 1 | . . . 1 . Fabricator Hacks . | . . . . . Repair Station Hacks . | . . . . . Recycling Unit Hacks 2 | . 2 . . . Process 1 | . 1 . . . Report Inventory 1 | . 1 . . . Scanalyzer 3 | . . . 3 . Insert Component 1 | . . . 1 . Analyze 1 | . . . 1 . Retrieve Study 1 | . . . 1 . Garrison Access Hacks . | . . . . . Unauthorized Hacks . | . . . . . Terminals . | . . . . . Fabricators . | . . . . . Repair Stations . | . . . . . Recycling Units . | . . . . . Scanalyzers . | . . . . . Garrison Access . | . . . . . Data Cores Recovered . | . . . . . Used . | . . . . . Hacking Detections 1 | . . . 1 . Full Trace Events . | . . . . . Feedback Events . | . . . . . Feedback Blocked . | . . . . . Robot Schematics Acquired . | . . . . . Robots Built . | . . . . . Authchips . | . . . . . Time . | . . . . . Total Robot Build Rating . | . . . . . Part Schematics Acquired 1 | . . . 1 . Parts Built . | . . . . . Authchips . | . . . . . Time . | . . . . . Total Part Build Rating . | . . . . . Part Studies Acquired . | . . . . . Parts Repaired . | . . . . . Time . | . . . . . Parts Recycled . | . . . . . Recycled Matter 293 | . 293 . . . Retrieved Matter . | . . . . . Retrieved Components . | . . . . . Parts Scanalyzed 1 | . . . 1 . Part Schematics Acquired 1 | . . . 1 . Parts Damaged . | . . . . . Bothacking | -11 -10 -10 -9 -8 ------------ Run | Yrd Mat Min Mat Mat Used RIF Installer . | . . . . . Robots Hacked . | . . . . . Non-combat . | . . . . . Combat . | . . . . . Robot Hacks Applied . | . . . . . Relay Couplers Released . | . . . . . Fabnet Peak Effective % . | . . . . . Robots Rewired . | . . . . . Allies Hacked . | . . . . . Hacks Repelled . | . . . . . Allies | -11 -10 -10 -9 -8 -------- Run | Yrd Mat Min Mat Mat Total Allies 2 | . . 2 . . Largest Group 2 | . . 2 1 . Highest-Rated Group 58 | . . 58 31 . Highest-Rated Ally 31 | . . 31 31 . Total Orders . | . . . . . Ally Attacks 11 | . . . 11 . Total Damage 106 | . . . 106 . Kills 3 | . . . 3 . Allies Corrupted . | . . . . . Allies Melted . | . . . . . Intel | -11 -10 -10 -9 -8 ------- Run | Yrd Mat Min Mat Mat Active Infowar (turns) 1834 | 491 723 71 276 273 Optics 548 | . . . 275 273 Sensors 366 | . 7 . 276 83 Terrain 66 | . . . . 66 Seismic 1683 | 491 720 71 276 125 Robot Analysis Total . | . . . . . Derelict Logs Recovered . | . . . . . Drone Launches . | . . . . . Drone Recoveries . | . . . . . Exploration | -11 -10 -10 -9 -8 ------------- Run | Yrd Mat Min Mat Mat Turns Passed 1939 | 564 755 71 276 273 Spaces Moved 1398 | 270 393 104 328 303 Core 134 | 16 13 . . 105 Treads 545 | 254 272 . . 19 Legs 42 | . . . . 42 Wheels . | . . . . . Hover . | . . . . . Flight 677 | . 108 104 328 137 Fastest Speed 37 | 50 37 37 37 37 Average Speed 93 | 153 137 37 37 64 Slowest Speed 450 | 160 450 37 37 200 Overloaded Moves . | . . . . . Propulsion Burnouts . | . . . . . Robots Hopped 4 | . 1 . 2 1 Potential Cave-ins 2 | . . . . 2 Cave-ins Triggered . | . . . . . Exploration Rate (%) 29 | 7 55 35 28 21 Regions Visited 4 Branch Regions 1 Pre-discovered Areas . | . . . . . Known Exits Taken 3 | . 1 1 1 . Unknown Exits Taken 1 | 1 . . . . Scrap Searched . | . . . . . Spaces Dug 2 | . 2 . . . Terrain Destroyed 42 | . 8 . . 34 Melee . | . . . . . Projectile 3 | . 3 . . . AOE 39 | . 5 . . 34 Terrain Rammed . | . . . . . Walls Destroyed . | . . . . . Machines Disabled . | . . . . . Actions | -11 -10 -10 -9 -8 --------- Run | Yrd Mat Min Mat Mat Total 1867 | 349 534 135 480 369 Wait 234 | . 35 32 151 16 Move 1386 | 269 390 103 323 301 Hop 4 | . 1 . 2 1 Pick Up 45 | 13 17 . 2 13 Fast Attach 7 | 1 6 . . . Attach 30 | 6 7 . 2 15 Detach . | . . . . . Swap 12 | . 10 . . 2 Drop 24 | 3 16 . . 5 Fire 115 | 57 51 . . 7 Melee . | . . . . . Ram 10 | . 1 . . 9 Kick . | . . . . . Crush . | . . . . . Escape Stasis . | . . . . . Rewire . | . . . . . Trap . | . . . . . Miscellaneous . | . . . . . Route ------- -11/Scrapyard -10/Materials -10/Mines -9/Materials -8/Materials History --------- Turn | Location | Event 9 | -11/Scrapyard | Discovered new exit (range 15) 565 | -11/Scrapyard | Entered Materials 597 | -10/Materials | Build established: Mutant 1316 | -10/Materials | Discovered new exit (range 12) 1320 | -10/Materials | Identified exit to Mines 1320 | -10/Materials | Entered Mines 1356 | -10/Mines | Discovered new exit (range 5) 1386 | -10/Mines | Identified exit to Materials 1391 | -10/Mines | Entered Materials 1391 | -9/Materials | Accompanied by 1 ally 1391 | -9/Materials | Evolved 2 slots: Utility x2 1396 | -9/Materials | Led the pair of lost Derelicts to an unsafe place 1663 | -9/Materials | Discovered new exit (range 12) 1667 | -9/Materials | Identified exit to Materials 1667 | -9/Materials | Entered another Materials area 1667 | -8/Materials | Evolved 2 slots: Utility x2 1783 | -8/Materials | Lost 7 parts (2p2n2u1w) 1791 | -8/Materials | Core integrity fell below 50% 1850 | -8/Materials | Core integrity fell below 20% 1940 | -8/Materials | Destroyed by X-62 Marksman with Pulse Rifle Last Messages --------------- Dropped Shotgun. Dropped Lgt. Treads. Acquired Flight Unit. Dropped Lgt. Treads. Acquired Lgt. Treads. Acquired Targeting Computer. Acquired 36 matter. Open spaces previously occupied by now-destroyed walls and earth have a slight glow to them. Consecutive moves through these unstable areas may cause a cave-in, but only if doing so for extended periods. Tunneling a short distance between rooms is safe unless the area was destabilized by an explosion. Heat Sink destroyed. Acquired Carbon-fiber Leg. Lgt. Assault Rifle destroyed. Penetrated by Slug. Lgt. Treads destroyed. Penetrated by Slug. Map ----- +----------------------------------------------------+ | ???????????###### """ #?##%#?#?## ####??????? | | ???????????# # #### #?#####+#####??????? | | ???????????# # ### #?? ???? | | ???????????# # #?# T !#??????? | | ???????????# # #?# ##?#???? | | ???????????# %+% %== ### """ """ #?????#? | | ???????????# #% == + """ """ #?#????# | | ???????????# # = ### """ """ #??????? | | ???????????# # ######### ### #??????? | | ???????????# # #???????# #?# #??????? | | ???????????###### #???????# #?## #########?????? | | ????????????????# #??????## ########??##???????? | | ????????????????#+######### # #???????????? | | ???????????????## # # #??????#????? | | ????????????????# # # """ #???????????? | | ??????????????#?# # #! """ #?#?#???????? | | ????????????????#= + # """ ###?????????? | | ????????????????#%% #% + #???????????? | | ???????????????# # ########???#??????? | | ?????????????#?## # # """ #?????????? | | ??????????????#?# # # """ #????#????? | | ????????????????########### # """ #?#??????? [? | | ?????????????????# # + #????????#+## | | ?????????????????# # # ###????? # | | ?????????????????# # # ######?? # | | ?????????????????# @# ##+##+### ### # | | ????????????#????# x % """"""""" # | | ?????????????????# # " "" # | | ??????????????#??# # g "% "" + | | ?????????#??#??#?# # "! "" # | | ?????????????????# # "[! "" # | | ?????????????????########## ##+###;= % "" # | | ???????????????#?????###??# # "" ! ""###+# | | ????????????????????????#?# # #"""""""" #???? | | ?????????????????????#?#??# # # #???? | | ??????????????#????#???#??##### ## # #####???? | | ?????????????????????##???#?#?# ########??????? | | ?????????????????#????????#???# #???#????? ???? | | ?????????????????#??#?#???????# ##????#???????? | | ?????????????????????????#????# #?????????????? | | ??????????????????????#??#????# #?#???????????? | | ????????????????????#??????#??######??#??????????? | | ??????????????????????????????????#??????????????? | | ??????????????????????????#??????????????????????? | | | | | | | | | | | | | +----------------------------------------------------+ Best States ------------- Heat Dissipation 41 Energy Generation 14 Energy Capacity 160 Matter Stores 300 Matter Capacity 300 Sight Range 18 Robot Scan Range 14 Terrain Scan Range 16 Terrain Scan Density 85 Evasion (%) 62 Recoil Reduction 2 Item Schematics ----------------- Lgt. Nuclear Core | -9/Materials | Scanalyzed Robot Schematics ------------------ None Fabricated ------------ Nothing Repaired ---------- Nothing Studied --------- None Alien Tech Used ----------------- None Achievements -------------- None Challenges ------------ None Game ------ Seed ModifiedFortressPropulsion Manual? 0 Play Time 00:43:41 Cumulative 7.2 hours Start 2026.07.25 @ 19:05:15 End 2026.07.25 @ 19:49:34 Sessions 1 Manual Loads 0 Difficulty Rogue Special Mode None Game No. 7 Rogue 7 Adventurer 0 Explorer 0 Win Type - Total 0 Types 0/0/0/0/0/0/0/0/0/0 Lore% 1 Gallery% 8 Achievement% 7 Wizard Run 0 Options --------- Layout 1 ASCII 0 Keyboard 0 Movement Mouse Keybinds 0 Fullscreen 2 Font 24/Smallcaps Map View 50x35 Zoom Use 0% Tactical HUD 0 Map Filters NONE Filters NONE Steam 1 RUN: 786ccffc-1720-4567-be6b-ac9eca3925bd